Cogmind - Beta 15 @@@ ROGUE MODE // 2025.05.16 @ 22:26:11 Player: mathSq Result: Destroyed by S-10 Pest with Light Assault Rifle Performance ------------- Evolutions (0) 0 Regions Visited (3) 600 Robots Destroyed (26) 130 Value Destroyed (452) 452 Prototype IDs (4) 80 Alien Tech Used (0) 0 Bonus (0) 0 TOTAL SCORE: 1262 Bonus ------- None Cogmind --------- Core Integrity 0/250 Matter 241/300 Energy 140/140 System Corruption 0% Temperature Cool (0) Movement Rolling (95) Location -10/Subcaves Parts ------- > --- POWER (1) -------- Light Deuterium Engine > --- PROPULSION (2) --- Wheel Subdweller Monowheel > --- UTILITY (2) ------ Small Storage Unit Light Armor Plating > --- WEAPON (2) ------- Beam Cannon Bore Cannon > --- INVENTORY (8) ---- Improved Heat Sink Seismic Detector Light Armor Plating Light Armor Plating Light Armor Plating Grenade Launcher Mining Laser Peak State ------------ > --- POWER ------------ Light Deuterium Engine > --- PROPULSION ------- Wheel Wheel > --- UTILITY ---------- Small Storage Unit Subdweller Optics > --- WEAPON ----------- Beam Cannon Bore Cannon > --- INVENTORY -------- Improved Heat Sink Seismic Detector Light Armor Plating Light Armor Plating Light Armor Plating Light Armor Plating Grenade Launcher Mining Laser [Rating: 15] Favorites ----------- Power Ion Engine Engine Ion Engine Propulsion Light Treads Treads Light Treads Wheel Wheel Utility Small Storage Unit Device Seismic Detector Storage Small Storage Unit Protection Light Armor Plating Weapon Beam Cannon Energy Gun Small Laser Energy Cannon Beam Cannon Ballistic Gun Subdweller Machine Gun Ballistic Cannon Bore Cannon Special Weapon Mining Laser Build | -11 -10 -10 -10 ------- Run | Yrd Mat Min Sub Slots Evolved . | . . . . Power . | . . . . Propulsion . | . . . . Utility . | . . . . Weapon . | . . . . Parts Attached 23 | 7 5 7 4 Power 2 | 1 . 1 . Engine 2 | 1 . 1 . Core . | . . . . Reactor . | . . . . Propulsion 6 | 2 . 3 1 Treads 2 | 2 . . . Leg . | . . . . Wheel 4 | . . 3 1 Hover . | . . . . Flight . | . . . . Utility 8 | 2 3 1 2 Device 5 | 1 2 1 1 Storage 1 | 1 . . . Processor . | . . . . Hackware . | . . . . Protection 2 | . 1 . 1 Artifact . | . . . . Weapon 7 | 2 2 2 1 Energy Gun 2 | 2 . . . Energy Cannon 2 | . 2 . . Ballistic Gun 1 | . . . 1 Ballistic Cannon 1 | . . 1 . Launcher . | . . . . Special Weapon 1 | . . 1 . Impact Weapon . | . . . . Slashing Weapon . | . . . . Piercing Weapon . | . . . . Special Melee Weapon . | . . . . Unidentified Prototypes . | . . . . Parts Lost 6 | . . 5 1 Power 1 | . . 1 . Propulsion 4 | . . 3 1 Utility . | . . . . Weapon 1 | . . 1 . Highest Loss Streak 3 | . . 3 1 To Critical Strikes 1 | . . 1 . Average Backups 7 | 6 7 7 7 Power . | . . . . Propulsion 2 | 4 3 . . Utility 3 | . 3 5 5 Weapon 1 | . 1 2 2 Tool/Special . | . . . . Unused Backups 13 | 1 8 . 4 Power 1 | . 1 . . Propulsion 6 | 1 5 . . Utility 4 | . 1 . 3 Weapon 2 | . 1 . 1 Tool/Special . | . . . . Average Slot Usage (%) 98 | . 100 96 100 Engine 13 | . 14 13 14 Treads 13 | . 28 5 . Wheel 14 | . . 21 28 Device 13 | . 13 13 12 Storage 14 | . 14 14 14 Energy Gun 7 | . 18 . . Energy Cannon 14 | . 9 20 14 Ballistic Cannon 4 | . . 4 14 Peak Build Rating 15 | 7 7 14 15 Average Rating 8 | 5 6 9 13 On Entrance 7 | . 7 7 14 Naked Turns . | . . . . Heaviest Build 23 | 14 17 23 23 Greatest Support 40 | 40 40 40 30 Greatest Overweight (x) 1 | . . 1 1 Average Overweight (x) . | . . . . Largest Inventory Capacity 8 | 8 8 8 8 Average Capacity 7 | 7 8 8 8 Most Carried 8 | 8 8 8 8 Average Carried 7 | 6 7 7 7 Final Capacity 8 | 8 8 8 8 Final Carried 8 | 8 8 8 7 Class Distribution -------------------- 100% | Mutant Dominant Class ---------------- Mutant | -10/Materials Mutant | -10/Mines Mutant | -10/Subcaves Resources | -11 -10 -10 -10 ----------- Run | Yrd Mat Min Sub Matter Collected 485 | 270 30 105 80 Remotely . | . . . . Salvage Created 634 | 139 329 144 22 Parts 61 | 21 34 4 2 Haulers Intercepted . | . . . . Recyclers Shooed . | . . . . Parts Field Recycled . | . . . . Retrieved Matter . | . . . . Parts Self-Destructed 7 | . . . 7 Prevented . | . . . . Kills | -11 -10 -10 -10 ------- Run | Yrd Mat Min Sub Combat Hostiles Destroyed 17 | . 11 4 2 Melee 1 | . . 1 . Guns 11 | . 11 . . Cannons 4 | . . 2 2 Classes Destroyed 6 | 1 3 2 . Builder 1 | . 1 . . Tunneler 9 | 8 1 . . Swarmer 8 | . 6 . 2 Grunt 7 | . 5 2 . Demolisher 1 | . . 1 . Assembled 1 | . . 1 . Best Kill Streak 5 | 3 5 1 2 Combat Bots Only 3 | . 3 1 2 Max Kills in Single Turn 2 | 1 2 1 1 Gunslinging . | . . . . Exploded . | . . . . Melee 1 | . . 1 . Uniques/NPCs Destroyed . | . . . . Combat | -11 -10 -10 -10 -------- Run | Yrd Mat Min Sub Hostile Shots Fired 98 | . 38 38 22 Missed 23 | . 11 4 8 Hits 75 | . 27 34 14 Projectile 75 | . 27 34 14 AOE 7 | . . 7 . Critical Strikes 1 | . . 1 . Damage Taken 1082 | . 249 654 179 Core 255 | . 63 176 16 Absorbed by Shields . | . . . . Core Remaining (%) 100 | 100 . . . Volleys Fired 74 | 20 23 24 7 Largest 2 | 2 2 2 2 Hottest 120 | 90 90 120 108 Shots Fired 139 | 40 46 39 14 Gun 86 | 40 46 . . Cannon 48 | . . 34 14 Launcher . | . . . . Special 5 | . . 5 . Kinetic 7 | . . . 7 Thermal 132 | 40 46 39 7 Explosive . | . . . . Electromagnetic . | . . . . Robot Hit Streak 15 | 10 7 15 2 Robot Miss Streak 3 | 3 2 3 3 Penetration Max . | . . . . Secondary Targets 1 | . 1 . . Max Gunslinging Chain 1 | . 1 . . Shots Hit Robots 82 | 26 29 21 6 Core Hits 35 | 8 18 7 2 Critical Kills . | . . . . Critical Parts Destroyed . | . . . . Critical Strikes 3 | 1 2 . . Burn 3 | 1 2 . . Melee Attacks . | . . . . Impact . | . . . . Slashing . | . . . . Piercing . | . . . . Sneak Attacks . | . . . . Combat Hostiles . | . . . . Follow-up Attacks . | . . . . Damage Inflicted 1159 | 304 352 375 128 Guns 656 | 304 352 . . Cannons 500 | . . 372 128 Explosions . | . . . . Melee . | . . . . Ramming 3 | . . 3 . Kinetic 58 | . . . 58 Thermal 1098 | 304 352 372 70 Explosive . | . . . . Electromagnetic . | . . . . Impact . | . . . . Slashing . | . . . . Piercing . | . . . . Highest Corruption . | . . . . Average Corruption . | . . . . Corruption Purged . | . . . . Corruption Blocked . | . . . . Overload Shots . | . . . . Overflow Damage 33 | . . . 33 Projectiles 33 | . . . 33 Explosions . | . . . . Melee . | . . . . Knockbacks 1 | . . . 1 Impact . | . . . . Kinetic 1 | . . . 1 Secondary . | . . . . Self-Inflicted Damage 1 | . . 1 . Shots . | . . . . Rammed 1 | . . 1 . Targets Rammed 1 | . . 1 . Kicked . | . . . . Crushed . | . . . . Highest Temperature 300 | 120 252 300 . Average Temperature 95 | 36 88 138 . Received Heat Transfer 222 | . 72 150 . Effects 5 | . . 5 . Interference 5 | . . 5 . Siege Activations . | . . . . Martial Activations . | . . . . Shielding Activations . | . . . . Robots Disrupted . | . . . . Combat Hostiles . | . . . . Robots Corrupted . | . . . . Combat Hostiles . | . . . . Parts Fried . | . . . . Impact Corruptions . | . . . . Robots Melted 1 | . . 1 . Combat Hostiles 1 | . . 1 . Parts Melted 2 | . 1 1 . Heat Transferred 2895 | 892 1078 777 148 Parts Sabotaged . | . . . . Parts Stolen . | . . . . Parts Stripped . | . . . . Power Chain Reactions . | . . . . Alert | -11 -10 -10 -10 ------- Run | Yrd Mat Min Sub Maximum Alert Level . | . . . . Low Security (%) 100 | 100 100 100 . Level 1 . | . . . . Level 2 . | . . . . Level 3 . | . . . . Level 4 . | . . . . Level 5 . | . . . . High Security . | . . . . Max Security . | . . . . Peak Influence 111 | 5 111 34 . Initial 4 | . . 4 . Average 18 | . 45 2 . Influence Increases 431 | 40 267 74 50 Destroy 0b10 Robot/C 320 | . 220 60 40 Destroy 0b10 Robot/NC 50 | 40 10 . . Destroy Leader 50 | . 30 10 10 Successful Hack 6 | . 6 . . Destroy Structure 5 | . 1 4 . Influence Decreases 381 | 40 254 87 . Entered New Map 9 | . . 9 . Time Decay 362 | 40 254 68 . Lost Part 10 | . . 10 . Squads Dispatched 2 | . 2 . . Investigation 1 | . 1 . . Extermination . | . . . . Reinforcement 1 | . 1 . . Assault . | . . . . Garrison . | . . . . Intercept . | . . . . Searches Triggered . | . . . . Construction Impeded . | . . . . Haulers Reinforced . | . . . . Active Scanning Responses . | . . . . Cargo Convoy Interrupts . | . . . . Stealth | -11 -10 -10 -10 --------- Run | Yrd Mat Min Sub Distress Signals 3 | . 3 . . Communications Jammed . | . . . . Distress Signals . | . . . . Times Spotted 26 | . 19 4 3 Peak Tracking Total 4 | . 4 2 3 Tactical Retreats . | . . . . Traps | -11 -10 -10 -10 ------- Run | Yrd Mat Min Sub Traps Triggered 2 | . 1 . 1 Indirectly . | . . . . Trap Hack Attempts . | . . . . Triggered . | . . . . Disarmed . | . . . . Reprogrammed . | . . . . Reused . | . . . . Traps Extracted . | . . . . Installed . | . . . . Triggered . | . . . . Machines | -11 -10 -10 -10 ---------- Run | Yrd Mat Min Sub Machines Disabled . | . . . . Max in Single Turn . | . . . . Machines Repaired . | . . . . Machines Dismantled . | . . . . Machines Sabotaged . | . . . . Overloaded Fab Kills . | . . . . Hacking | -11 -10 -10 -10 --------- Run | Yrd Mat Min Sub Machines Accessed 3 | . 3 . . Terminals 3 | . 3 . . Fabricators . | . . . . Repair Stations . | . . . . Recycling Units . | . . . . Scanalyzers . | . . . . Garrison Access . | . . . . Total Hacks 11 | . 11 . . Successful 5 | . 5 . . Failed 6 | . 6 . . Catastrophic 2 | . 2 . . Database Lockouts . | . . . . Manual 4 | . 4 . . Terminals 11 | . 11 . . Fabricators . | . . . . Repair Stations . | . . . . Recycling Units . | . . . . Scanalyzers . | . . . . Garrison Access . | . . . . Terminal Hacks 5 | . 5 . . Robot Analysis 1 | . 1 . . Prototype ID Bank 2 | . 2 . . Locate Traps 1 | . 1 . . Hauler Manifests 1 | . 1 . . Fabricator Hacks . | . . . . Repair Station Hacks . | . . . . Recycling Unit Hacks . | . . . . Scanalyzer . | . . . . Garrison Access Hacks . | . . . . Unauthorized Hacks . | . . . . Terminals . | . . . . Fabricators . | . . . . Repair Stations . | . . . . Recycling Units . | . . . . Scanalyzers . | . . . . Garrison Access . | . . . . Data Cores Recovered . | . . . . Used . | . . . . Hacking Detections 3 | . 3 . . Full Trace Events . | . . . . Feedback Events . | . . . . Feedback Blocked . | . . . . Robot Schematics Acquired . | . . . . Robots Built . | . . . . Authchips . | . . . . Time . | . . . . Total Robot Build Rating . | . . . . Part Schematics Acquired . | . . . . Parts Built . | . . . . Authchips . | . . . . Time . | . . . . Total Part Build Rating . | . . . . Parts Repaired . | . . . . Time . | . . . . Parts Recycled . | . . . . Recycled Matter . | . . . . Retrieved Matter . | . . . . Retrieved Components . | . . . . Parts Scanalyzed . | . . . . Part Schematics Acquired . | . . . . Parts Damaged . | . . . . Bothacking | -11 -10 -10 -10 ------------ Run | Yrd Mat Min Sub Used RIF Installer . | . . . . Robots Hacked . | . . . . Non-combat . | . . . . Combat . | . . . . Robot Hacks Applied . | . . . . Relay Couplers Released . | . . . . Fabnet Peak Effective % . | . . . . Robots Rewired . | . . . . Allies Hacked . | . . . . Hacks Repelled . | . . . . Allies | -11 -10 -10 -10 -------- Run | Yrd Mat Min Sub Total Allies . | . . . . Largest Group . | . . . . Highest-Rated Group . | . . . . Highest-Rated Ally . | . . . . Total Orders . | . . . . Ally Attacks . | . . . . Total Damage . | . . . . Kills . | . . . . Allies Corrupted . | . . . . Allies Melted . | . . . . Intel | -11 -10 -10 -10 ------- Run | Yrd Mat Min Sub Active Infowar (turns) 1491 | 68 621 529 273 Optics 1 | . . . 1 Seismic 1490 | 68 621 529 272 Robot Analysis Total 1 | . 1 . . Derelict Logs Recovered 1 | . . 1 . Drone Launches . | . . . . Drone Recoveries . | . . . . Exploration | -11 -10 -10 -10 ------------- Run | Yrd Mat Min Sub Turns Passed 2009 | 468 646 597 298 Spaces Moved 1219 | 224 320 403 272 Core 3 | 3 . . . Treads 554 | 221 320 13 . Legs . | . . . . Wheels 662 | . . 390 272 Hover . | . . . . Flight . | . . . . Fastest Speed 50 | 50 160 80 80 Average Speed 122 | 158 160 91 94 Slowest Speed 160 | 160 160 160 95 Overloaded Moves . | . . . . Propulsion Burnouts . | . . . . Robots Hopped . | . . . . Potential Cave-ins . | . . . . Cave-ins Triggered . | . . . . Exploration Rate (%) 38 | 10 45 78 19 Regions Visited 3 Branch Regions 2 Pre-discovered Areas 1 | . . 1 . Known Exits Taken . | . . . . Unknown Exits Taken 3 | 1 1 1 . Scrap Searched 4 | . . 1 3 Spaces Dug 5 | . . 5 . Terrain Destroyed 8 | . . 5 3 Melee . | . . . . Projectile 8 | . . 5 3 AOE . | . . . . Terrain Rammed . | . . . . Walls Destroyed . | . . . . Machines Disabled . | . . . . Actions | -11 -10 -10 -10 --------- Run | Yrd Mat Min Sub Total 1578 | 296 413 574 295 Wait 218 | 36 45 133 4 Move 1216 | 223 319 402 272 Hop . | . . . . Pick Up 20 | 9 8 1 2 Fast Attach 15 | 7 2 4 2 Attach 2 | . . 1 1 Detach . | . . . . Swap 15 | . 4 8 3 Drop 17 | 1 12 . 4 Fire 74 | 20 23 24 7 Melee . | . . . . Ram 1 | . . 1 . Kick . | . . . . Crush . | . . . . Escape Stasis . | . . . . Rewire . | . . . . Trap . | . . . . Miscellaneous . | . . . . Route ------- -11/Scrapyard -10/Materials (discovered 2 exits: [*Mat] / [*Min]) -10/Mines (discovered 2 exits: [*Exi] / [*Sub]) -10/Subcaves History --------- Turn | Location | Event 11 | -11/Scrapyard | Discovered new exit (range 14) 469 | -11/Scrapyard | Entered Materials 479 | -10/Materials | Build established: Mutant 635 | -10/Materials | Discovered new exit (range 9) 885 | -10/Materials | Discovered new exit (range 10) 1115 | -10/Materials | Entered Mines 1206 | -10/Mines | Assembled infested the area 1304 | -10/Mines | Core integrity fell below 50% 1434 | -10/Mines | Core integrity fell below 20% 1467 | -10/Mines | Learned Materials trap positions 1470 | -10/Mines | Lost 3 parts (1p1n1w) 1528 | -10/Mines | A weapon hastily lodged in a ceiling crevice suddenly fell to the ground 1642 | -10/Mines | Learned location of Storage (-8) 1679 | -10/Mines | Deemed a non-threat by the Exiles lab entrance 1680 | -10/Mines | Discovered new exit (range 5) 1707 | -10/Mines | Discovered new exit (range 6) 1712 | -10/Mines | Entered Subcaves 2010 | -10/Subcaves | Destroyed by S-10 Pest with Light Assault Rifle Last Messages --------------- 01774_ Found Sub. Monowheel. 01774_ Found 36 Matter. 01775_ Acquired 20 matter. 01775_ Dropped Sub. Optics. 01776_ Acquired Sub. Monowheel. 01891_ Triggered Piercing Trap. 01891_ Spikes shoot up from the floor. 01891_ Critical hit (Impale). 01891_ Wheel destroyed. 01951_ Acquired 10 matter. 01993_ S-10 Pest destroyed. 01993_ HV Slug penetrates Wall. 01999_ S-10 Pest destroyed. 02001_ Flight Unit fries itself beyond repair. 02002_ HV Slug penetrates Earth. 02003_ Flight Unit fries itself beyond repair. 02005_ HV Slug penetrates S-10 Pest. 02005_ Destroyed Flight Unit. 02005_ S-10 Pest knocked back. 02008_ HV Slug penetrates Wall. Map ----- +----------------------------------------------------+ | | | | | | | | | | | | | | | ?????????????????????????????????????????????????? | | ?????????????????????????????????????????????????? | | ?????????????????????????????????????????????????? | | ?????????????????????????????????????????????????? | | ?????????????????????????????????????????????????? | | ?????????????????????????????????????????????????? | | ?????????????????????????????????????????????????? | | ?????????????????????????????????????????????????? | | ?????????????????????????????????????????????????? | | ?????????????????????????????????????????????????? | | ?????????????????????????????????????????????????? | | ?????????????????????????????????????????????????? | | ?????????????????????????????????????????????????? | | ?????????????????????????????????????????????????? | | ?????????????????????????????????????????????????? | | ?????????????????????????????????????????????????? | | ???????????????????????###??????????????#????????? | | ?????????????????????### ##?????????? ???????? | | ?????????????????????#; %@#?##????% ??????????? | | ??????????????######## %## ### #?????????????? | | ?????????????## ## # # ?????????? | | ?????????????# s % % ??????? | | ?????????????# % ??????? | | ?????????????## *%# # ??????? | | ?????????????## #;######?#??? ## ???????? | | ?????????????# ### ###??###?????????????????? | | ?????????????# #?## ##?## ##????????????????? | | ?????????????## ##??## ### %##???????????????? | | ?????????????## #????# ##??????????????? | | ?????????????# ####?# ##?????????????? | | ?????????????## ### #?????????????? | | ?????????????## # # #??????????????????? | | ?????????????# % #??????????????????? | | ?????????????# #??????????????????? | | ?????????????# ### #??????????????????? | | ???????????#### #?# ## #??????????????????? | | ???????????# ### #?# ### ##????????????????## | | ???????????#% ### ?# ##?# ##???????????????? | | ???????????# #?# ?####?## ###?????????????? | | ???????????# #### ???#### ##?????????????? | | ???????????## #??#???# #?????????????? | | ????????????# ######?# ## #?#####???????? | | ????????????# #### ## ### ##??????? | +----------------------------------------------------+ Best States ------------- Heat Dissipation 25 Energy Generation 14 Energy Capacity 250 Matter Stores 300 Matter Capacity 300 Sight Range 16 Terrain Scan Density 10 Armor Coverage 150 Evasion (%) 44 Recoil Reduction 2 Item Schematics ----------------- None Robot Schematics ------------------ None Fabricated ------------ Nothing Repaired ---------- Nothing Alien Tech Used ----------------- None Achievements -------------- None Challenges ------------ None Game ------ Seed FactoryExoskeletonShielding Manual? 0 Play Time 00:18:58 Cumulative 65.7 hours Start 2025.05.16 @ 22:09:21 End 2025.05.16 @ 22:26:11 Sessions 1 Manual Loads 0 Difficulty Rogue Special Mode None Game No. 32 Rogue 32 Adventurer 0 Explorer 0 Win Type - Total 1 Types 1/0/0/0/0/0/0/0/0/0 Lore% 47 Gallery% 52 Achievement% 46 Wizard Run 0 Options --------- Layout 0 ASCII 0 Keyboard 0 Movement Vi Keybinds 0 Fullscreen 1 Font 24/Tamsyn Map View 76x50 Zoom Use 0% Tactical HUD 1 Map Filters NONE Filters NONE Steam 1 RUN: 59004431-921c-449e-8330-63b777f76fd7